Cogmind - Beta 12 X1 *** ADVENTURER MODE // 2022.07.05 @ 00:53:59 Player: Lyra Result: Destroyed by Y-45 Defender with Beam Rifle Performance ------------- Evolutions (2) 1000 Regions Visited (5) 1000 Robots Destroyed (120) 600 Value Destroyed (3495) 3495 Prototype IDs (1) 20 Alien Tech Used (0) 0 Bonus (845) 845 TOTAL SCORE: 6960 Bonus ------- High Alert Combat Kills 645 Entered Garrisons 200 Cogmind --------- Core Integrity 0/550 Matter 215/300 Energy 250/250 System Corruption 5% Temperature Cool (9) Movement Walking (192) Ox1 Location -8/Materials Parts ------- > --- POWER (1) -------- Ion Engine > --- PROPULSION (4) --- Aluminum Leg Aluminum Leg Carbon-fiber Leg Titanium Leg > --- UTILITY (4) ------ Improved Heat Sink High-capacity Storage Unit Reaction Control System Hardened Medium Armor Plating > --- WEAPON (2) ------- Improved Medium Laser High-powered Shotgun > --- INVENTORY (20) --- Titanium Leg Improved Heat Sink Medium Storage Unit Large Storage Unit High-capacity Matter Pod (161) Advanced Weight Redist. System Advanced Visual Processing Unit Improved Sensor Array Improved Utility Shielding Hardened Light Armor Plating Hardlight Generator Heavy EM Pulse Gun Field Laser Assault Cannon Mini Grenade Launcher Peak State ------------ > --- POWER ------------ Light Nuclear Core > --- PROPULSION ------- Improved Aluminum Leg Titanium Leg Titanium Leg Titanium Leg > --- UTILITY ---------- Improved Heat Sink High-capacity Storage Unit Advanced Targeting Computer Hardened Light Armor Plating > --- WEAPON ----------- Field Laser High-powered Shotgun > --- INVENTORY -------- Titanium Leg Medium Storage Unit Large Storage Unit High-capacity Matter Pod Advanced Weight Redist. System Advanced Visual Processing Unit Improved Sensor Array Reaction Control System Improved Utility Shielding Light Armor Plating Medium Armor Plating Hardlight Generator Shield Generator Heavy EM Pulse Gun Improved Medium Laser Assault Cannon Assault Cannon Mini Grenade Launcher [Rating: 33] Favorites ----------- Power Improved Ion Engine Engine Improved Ion Engine Power Core Light Nuclear Core Propulsion Titanium Leg Treads Advanced Treads Leg Titanium Leg Wheel Wheel Flight Unit Flight Unit Utility Improved Heat Sink Device Improved Heat Sink Storage High-capacity Storage Unit Processor Advanced Targeting Computer Protection Hardened Medium Armor Plating Weapon Spread Laser Energy Gun Spread Laser Ballistic Gun High-powered Shotgun Ballistic Cannon Assault Cannon Launcher Mini Grenade Launcher Build | -11 -10 -9 -8 -8 -8 ------- Run | Scr Mat Mat Mat Gar Mat Slots Evolved 4 | . . 2 2 . . Power . | . . . . . . Propulsion 2 | . . 2 . . . Utility 2 | . . . 2 . . Weapon . | . . . . . . Parts Attached 84 | . 3 11 40 21 9 Power 7 | . . 2 2 2 1 Engine 6 | . . 2 1 2 1 Core 1 | . . . 1 . . Reactor . | . . . . . . Propulsion 23 | . . 4 12 6 1 Treads 2 | . . . 2 . . Leg 15 | . . . 8 6 1 Wheel 2 | . . . 2 . . Hover . | . . . . . . Flight 4 | . . 4 . . . Utility 32 | . 2 2 13 9 6 Device 11 | . 1 . 4 3 3 Storage 4 | . 1 . 2 1 . Processor 3 | . . 1 2 . . Hackware . | . . . . . . Protection 14 | . . 1 5 5 3 Artifact . | . . . . . . Weapon 22 | . 1 3 13 4 1 Energy Gun 10 | . . 2 7 1 . Energy Cannon . | . . . . . . Ballistic Gun 4 | . . 1 2 . 1 Ballistic Cannon 6 | . 1 . 2 3 . Launcher 2 | . . . 2 . . Special Weapon . | . . . . . . Impact Weapon . | . . . . . . Slashing Weapon . | . . . . . . Piercing Weapon . | . . . . . . Special Melee Weapon . | . . . . . . Unidentified Prototypes 1 | . . 1 . . . Parts Lost 16 | . . . 6 5 5 Power 3 | . . . 1 2 . Propulsion 4 | . . . 2 2 . Utility 7 | . . . 2 1 4 Weapon 2 | . . . 1 . 1 Highest Loss Streak 2 | . . . 2 2 2 To Critical Strikes 1 | . . . 1 . . Average Slot Usage (%) 94 | . 87 91 93 97 97 Engine 7 | . 14 8 6 7 9 Core 1 | . . . 2 . . Treads 1 | . . . 3 . . Leg 27 | . 28 . 24 34 36 Flight 2 | . . 44 . . . Device 8 | . 2 5 9 9 10 Storage 7 | . 14 11 9 1 9 Processor 3 | . . 2 6 . . Protection 13 | . . 3 11 24 15 Energy Gun 11 | . 17 14 13 5 9 Ballistic Gun 2 | . . 2 3 . 5 Ballistic Cannon 4 | . 10 . . 11 2 Naked Turns . | . . . . . . Heaviest Build 74 | 11 18 16 69 74 67 Greatest Support 73 | 20 20 16 73 66 52 Greatest Overweight (x) 3 | . . . 3 1 1 Average Overweight (x) . | . . . . . . Largest Inventory Capacity 20 | . 10 10 20 20 20 Average Capacity 14 | . 9 10 18 8 20 Most Carried 20 | . 10 10 20 20 18 Average Carried 12 | . 8 9 15 7 16 Final Capacity 20 | 8 10 10 20 20 20 Final Carried 20 | 6 10 10 20 18 15 Class Distribution -------------------- 59% | Mutant 34% | Scavenger-Mutant 5% | Scavenger-Sprinter Dominant Class ---------------- Mutant | -10/Materials Scavenger-Sprinter | -9/Materials Mutant | -8/Materials Mutant | -8/Garrison Scavenger-Mutant | -8/Materials Resources | -11 -10 -9 -8 -8 -8 ----------- Run | Scr Mat Mat Mat Gar Mat Matter Collected 2545 | 200 109 102 838 907 389 Remotely . | . . . . . . Salvage Created 3884 | . 241 130 2220 600 693 Parts 222 | . 21 5 109 30 57 Haulers Intercepted 7 | . . 1 4 . 2 Recyclers Shooed 10 | . 2 1 4 . 3 Parts Field Recycled . | . . . . . . Retrieved Matter . | . . . . . . Parts Self-Destructed . | . . . . . . Prevented . | . . . . . . Kills | -11 -10 -9 -8 -8 -8 ------- Run | Scr Mat Mat Mat Gar Mat Combat Hostiles Destroyed 87 | . 7 1 42 21 16 Guns 54 | . 2 1 35 3 13 Cannons 28 | . 5 . 2 18 3 AOE 5 | . . . 5 . . Classes Destroyed 14 | . 6 2 4 2 . Worker 6 | . 1 . 4 . 1 Builder 4 | . 1 . 1 . 2 Tunneler 1 | . . . 1 . . Hauler 7 | . . 1 4 . 2 Recycler 9 | . 1 . 7 . 1 Operator 2 | . . . 1 . 1 Watcher 8 | . 1 1 4 . 2 Swarmer 19 | . 3 . 5 3 8 Grunt 44 | . 4 . 25 9 6 Brawler 4 | . . . 2 2 . Duelist 2 | . . . 1 1 . Sentry 14 | . . 1 9 2 2 Hunter 2 | . . . . 2 . Programmer 1 | . . . . 1 . Savage 1 | . . . . 1 . Best Kill Streak 9 | . 6 1 8 5 9 Combat Bots Only 7 | . 3 1 7 5 6 Max Kills in Single Turn 4 | . 1 1 4 1 2 Gunslinging 1 | . . . 1 . . Exploded 3 | . . . 3 . . Melee . | . . . . . . Uniques/NPCs Destroyed . | . . . . . . Combat | -11 -10 -9 -8 -8 -8 -------- Run | Scr Mat Mat Mat Gar Mat Damage Taken 3874 | . 166 36 1767 1454 451 Core 570 | . 17 . 276 235 42 Absorbed by Shields 96 | . . . 4 92 . Core Remaining (%) 97 | 100 93 100 . . . Volleys Fired 290 | . 27 11 124 82 46 Largest 2 | . 2 2 2 2 2 Hottest 130 | . 75 80 130 100 100 Shots Fired 556 | . 47 21 246 152 90 Gun 389 | . 21 21 233 44 70 Cannon 165 | . 26 . 11 108 20 Launcher 2 | . . . 2 . . Special . | . . . . . . Kinetic 239 | . 26 1 51 116 45 Thermal 314 | . 20 20 193 36 45 Explosive 2 | . . . 2 . . Electromagnetic 1 | . 1 . . . . Robot Hit Streak 40 | . 7 11 40 29 11 Robot Miss Streak 5 | . 3 1 5 3 3 Penetration Max . | . . . . . . Secondary Targets 5 | . . . 5 . . Max Gunslinging Chain 1 | . . . 1 . . Shots Hit Robots 435 | . 31 16 215 110 63 Core Hits 379 | . 12 6 284 40 37 Critical Kills . | . . . . . . Critical Parts Destroyed . | . . . . . . Critical Strikes 14 | . 2 . 5 5 2 Burn 7 | . . . 4 2 1 Blast 7 | . 2 . 1 3 1 Melee Attacks . | . . . . . . Impact . | . . . . . . Slashing . | . . . . . . Piercing . | . . . . . . Sneak Attacks . | . . . . . . Combat Hostiles . | . . . . . . Follow-up Attacks . | . . . . . . Damage Inflicted 8897 | . 480 185 4371 2563 1298 Guns 5572 | . 149 185 3765 555 918 Cannons 2935 | . 331 . 243 1981 380 Explosions 323 | . . . 323 . . Melee . | . . . . . . Ramming 67 | . . . 40 27 . Kinetic 4096 | . 331 . 925 2106 734 Thermal 4391 | . 129 185 3083 430 564 Explosive 323 | . . . 323 . . Electromagnetic 20 | . 20 . . . . Impact . | . . . . . . Slashing . | . . . . . . Piercing . | . . . . . . Highest Corruption 5 | . . . 2 5 5 Average Corruption 2 | . . . 1 3 5 Corruption Purged . | . . . . . . Corruption Blocked . | . . . . . . Effects 39 | . . . 9 23 7 Message Errors 8 | . . . 3 4 1 Matter Fused 11 | . . . 1 7 3 Heat Flow Errors 6 | . . . 2 4 . Energy Discharges 2 | . . . . 1 1 Data Loss (minor) 6 | . . . 2 3 1 Misfires 4 | . . . 1 3 . Weapon Failures 2 | . . . . 1 1 Overload Shots . | . . . . . . Overflow Damage 22 | . . . 7 15 . Projectiles 22 | . . . 7 15 . Explosions . | . . . . . . Melee . | . . . . . . Knockbacks 33 | . 2 . 2 21 8 Impact . | . . . . . . Kinetic 32 | . 2 . 2 21 7 Secondary 1 | . . . . . 1 Self-Inflicted Damage 50 | . 48 . 2 . . Shots 1 | . 1 . . . . Rammed 3 | . . . 3 . . Targets Rammed 12 | . . . 5 7 . Kicked 8 | . . . 1 7 . Crushed 1 | . . . 1 . . Highest Temperature 576 | . 93 34 288 576 97 Average Temperature 115 | . 30 17 71 190 27 Received Heat Transfer 1995 | . 42 54 1032 606 261 Effects 24 | . . . . 24 . Shutdowns 2 | . . . . 2 . Energy Bleed 6 | . . . . 6 . Interference 3 | . . . . 3 . Matter Decay 4 | . . . . 4 . Short Circuit 2 | . . . . 2 . Damage (minor) 3 | . . . . 3 . Damage (major) 3 | . . . . 3 . Damage (core) 1 | . . . . 1 . Siege Activations . | . . . . . . Robots Corrupted . | . . . . . . Combat Hostiles . | . . . . . . Parts Fried . | . . . . . . Impact Corruptions . | . . . . . . Robots Melted . | . . . . . . Combat Hostiles . | . . . . . . Parts Melted 7 | . . 1 5 . 1 Heat Transferred 7879 | . 300 425 4786 1073 1295 Parts Sabotaged . | . . . . . . Parts Stolen . | . . . . . . Parts Stripped . | . . . . . . Power Chain Reactions . | . . . . . . Missiles Intercepted . | . . . . . . Alert | -11 -10 -9 -8 -8 -8 ------- Run | Scr Mat Mat Mat Gar Mat Peak Influence 1017 | . 408 348 774 1017 919 Initial 441 | . . 146 124 441 426 Average 465 | . 181 226 345 770 609 Maximum Alert Level 3 | . 2 1 3 3 3 Low Security (%) 12 | . 51 33 13 . . Level 1 33 | . 47 66 51 . . Level 2 35 | . . . 32 36 87 Level 3 19 | . . . 2 63 12 Level 4 . | . . . . . . Level 5 . | . . . . . . High Security . | . . . . . . Max Security . | . . . . . . Squads Dispatched 15 | . 1 2 10 . 2 Investigation 9 | . 1 1 6 . 1 Extermination . | . . . . . . Reinforcement 3 | . . 1 1 . 1 Assault . | . . . . . . Garrison 3 | . . . 3 . . Intercept . | . . . . . . Searches Triggered . | . . . . . . Construction Impeded . | . . . . . . Haulers Reinforced . | . . . . . . Active Scanning Responses . | . . . . . . Cargo Convoy Interrupts . | . . . . . . Stealth | -11 -10 -9 -8 -8 -8 --------- Run | Scr Mat Mat Mat Gar Mat Distress Signals 3 | . . . . . 3 Communications Jammed . | . . . . . . Distress Signals . | . . . . . . Times Spotted 126 | . 11 7 55 30 23 Peak Tracking Total 7 | . 3 4 7 5 7 Tactical Retreats 8 | . 1 . . 5 2 Traps | -11 -10 -9 -8 -8 -8 ------- Run | Scr Mat Mat Mat Gar Mat Traps Triggered 5 | . 1 . 4 . . Indirectly . | . . . . . . Trap Hack Attempts . | . . . . . . Triggered . | . . . . . . Disarmed . | . . . . . . Reprogrammed . | . . . . . . Reused . | . . . . . . Traps Extracted . | . . . . . . Installed . | . . . . . . Triggered . | . . . . . . Machines | -11 -10 -9 -8 -8 -8 ---------- Run | Scr Mat Mat Mat Gar Mat Machines Disabled 6 | . 3 . 2 . 1 Max in Single Turn 3 | . 3 . 1 . 1 Machines Sabotaged . | . . . . . . Garrisons Compromised . | . . . . . . Overloaded Fab Kills . | . . . . . . Hacking | -11 -10 -9 -8 -8 -8 --------- Run | Scr Mat Mat Mat Gar Mat Machines Accessed 17 | . . 3 10 2 2 Terminals 14 | . . 3 7 2 2 Fabricators . | . . . . . . Repair Stations . | . . . . . . Recycling Units 1 | . . . 1 . . Scanalyzers 1 | . . . 1 . . Garrison Access 1 | . . . 1 . . Total Hacks 52 | . . 11 30 4 7 Successful 22 | . . 6 14 1 1 Failed 30 | . . 5 16 3 6 Catastrophic 10 | . . 2 6 . 2 Database Lockouts . | . . . . . . Manual 35 | . . 10 18 . 7 Terminals 42 | . . 11 20 4 7 Fabricators . | . . . . . . Repair Stations . | . . . . . . Recycling Units 5 | . . . 5 . . Scanalyzers 4 | . . . 4 . . Garrison Access 1 | . . . 1 . . Terminal Hacks 12 | . . 5 5 1 1 Part Schematic 3 | . . 3 . . . Open Door 1 | . . . . 1 . Level Access Points 3 | . . 1 1 . 1 Branch Access Points 1 | . . 1 . . . Terminal Index 1 | . . . 1 . . Recycling Unit Index 1 | . . . 1 . . Garrison Index 1 | . . . 1 . . Alert Level 1 | . . . 1 . . Fabricator Hacks . | . . . . . . Repair Station Hacks . | . . . . . . Recycling Unit Hacks 2 | . . . 2 . . Report Inventory 1 | . . . 1 . . Retrieve Components 1 | . . . 1 . . Scanalyzer 3 | . . . 3 . . Insert Component 2 | . . . 2 . . Analyze 1 | . . . 1 . . Garrison Access Hacks 1 | . . . 1 . . Unlock Access 1 | . . . 1 . . Unauthorized Hacks 4 | . . 1 3 . . Terminals 3 | . . 1 2 . . Botnet 3 | . . 1 2 . . Fabricators . | . . . . . . Repair Stations . | . . . . . . Recycling Units 1 | . . . 1 . . Tunnel 1 | . . . 1 . . Scanalyzers . | . . . . . . Garrison Access . | . . . . . . Data Cores Recovered 1 | . . . 1 . . Used 1 | . . . 1 . . Hacking Detections 16 | . . 3 9 2 2 Full Trace Events 7 | . . 1 4 1 1 Feedback Events . | . . . . . . Feedback Blocked . | . . . . . . Robot Schematics Acquired . | . . . . . . Robots Built . | . . . . . . Authchips . | . . . . . . Time . | . . . . . . Total Robot Build Rating . | . . . . . . Part Schematics Acquired 4 | . . 3 1 . . Parts Built . | . . . . . . Authchips . | . . . . . . Time . | . . . . . . Total Part Build Rating . | . . . . . . Parts Repaired . | . . . . . . Time . | . . . . . . Parts Recycled . | . . . . . . Recycled Matter . | . . . . . . Retrieved Matter . | . . . . . . Retrieved Components 10 | . . . 10 . . Parts Scanalyzed 2 | . . . 2 . . Part Schematics Acquired 1 | . . . 1 . . Parts Damaged . | . . . . . . Bothacking | -11 -10 -9 -8 -8 -8 ------------ Run | Scr Mat Mat Mat Gar Mat Used RIF Installer . | . . . . . . Robots Hacked . | . . . . . . Non-combat . | . . . . . . Combat . | . . . . . . Robot Hacks Applied . | . . . . . . Relay Couplers Released 4 | . . . . 4 . Programmers 4 | . . . . 4 . Fabnet Peak Effective % . | . . . . . . Robots Rewired . | . . . . . . Allies Hacked . | . . . . . . Hacks Repelled . | . . . . . . Allies | -11 -10 -9 -8 -8 -8 -------- Run | Scr Mat Mat Mat Gar Mat Total Allies 1 | . . . . 1 . Largest Group 1 | . . . . 1 . Highest-Rated Group 20 | . . . . 20 . Highest-Rated Ally 20 | . . . . 20 . Total Orders . | . . . . . . Ally Attacks 2 | . . . . 2 . Total Damage 51 | . . . . 51 . Kills . | . . . . . . Allies Corrupted . | . . . . . . Allies Melted . | . . . . . . Intel | -11 -10 -9 -8 -8 -8 ------- Run | Scr Mat Mat Mat Gar Mat Robot Analysis Total . | . . . . . . Derelict Logs Recovered . | . . . . . . Drone Launches . | . . . . . . Drone Recoveries . | . . . . . . Exploration | -11 -10 -9 -8 -8 -8 ------------- Run | Scr Mat Mat Mat Gar Mat Turns Passed 3882 | . 311 209 1946 1033 383 Spaces Moved 2217 | 1 173 417 1013 497 116 Core . | . . . . . . Treads 126 | . . . 126 . . Legs 1533 | 1 173 . 746 497 116 Wheels 110 | . . . 110 . . Hover . | . . . . . . Flight 448 | . . 417 31 . . Fastest Speed 31 | 120 120 31 31 122 122 Average Speed 122 | 120 120 31 143 141 189 Slowest Speed 260 | 120 120 31 260 200 192 Overloaded Moves . | . . . . . . Propulsion Burnouts . | . . . . . . Robots Hopped 7 | . . 7 . . . Cave-ins Triggered . | . . . . . . Exploration Rate (%) 32 | 2 34 37 77 34 12 Regions Visited 5 Branch Regions . Pre-discovered Areas 1 | . . . 1 . . Known Exits Taken 2 | . . 1 1 . . Unknown Exits Taken 2 | 1 1 . . . . Scrap Searched . | . . . . . . Spaces Dug . | . . . . . . Terrain Destroyed 56 | . 42 . 14 . . Melee . | . . . . . . Projectile . | . . . . . . AOE 56 | . 42 . 14 . . Terrain Rammed . | . . . . . . Walls Destroyed . | . . . . . . Machines Disabled . | . . . . . . Actions | -11 -10 -9 -8 -8 -8 --------- Run | Scr Mat Mat Mat Gar Mat Total 2811 | . 231 472 1251 670 187 Wait 115 | . 14 21 29 36 15 Move 2201 | . 172 404 1013 496 116 Hop 5 | . . 5 . . . Pick Up 58 | . 9 8 23 18 . Fast Attach 29 | . 2 1 13 11 2 Attach 26 | . . 7 10 5 4 Detach 6 | . . 3 3 . . Swap 29 | . 1 3 17 5 3 Drop 40 | . 6 9 14 10 1 Fire 290 | . 27 11 124 82 46 Melee . | . . . . . . Ram 2 | . . . 2 . . Kick 8 | . . . 1 7 . Crush 2 | . . . 2 . . Escape Stasis . | . . . . . . Rewire . | . . . . . . Trap . | . . . . . . Miscellaneous . | . . . . . . Route ------- -11/Scrapyard -10/Materials -9/Materials (discovered 4 exits: *Mat x3 / Min) -8/Materials (discovered 5 exits: *Fac x3 / [*Sto] / Gar) -8/Garrison -8/Materials (discovered 3 exits: Fac x3) History --------- Turn | Location | Event 1 | -11/Scrapyard | Discovered new exit (range 0) 1 | -11/Scrapyard | Entered Materials 248 | -10/Materials | Discovered new exit (range 15) 305 | -10/Materials | Build established: Mutant 312 | -10/Materials | Entered another Materials area 312 | -9/Materials | Evolved 2 slots: Propulsion x2 375 | -9/Materials | Discovered new exit (range 11) 417 | -9/Materials | Identified exit to Materials 452 | -9/Materials | Identified exit to Mines 521 | -9/Materials | Entered another Materials area 521 | -8/Materials | Evolved 2 slots: Utility x2 1136 | -8/Materials | Discovered new exit (range 10) 1297 | -8/Materials | Build established: Scavenger-Mutant 1674 | -8/Materials | Discovered new exit (range 11) 1788 | -8/Materials | Build established: Mutant 1830 | -8/Materials | Identified exit to Factory 2190 | -8/Materials | Discovered new exit (range 16) 2195 | -8/Materials | Destroyed 7 combat bots 2201 | -8/Materials | Garrison activated, responded to threat 2434 | -8/Materials | Core integrity fell below 50% 2467 | -8/Materials | Identified exit to Garrison 2467 | -8/Materials | Entered Garrison 2546 | -8/Garrison | Triggered checkpoint 2724 | -8/Garrison | Triggered checkpoint 2800 | -8/Garrison | Triggered checkpoint 2895 | -8/Garrison | Rescued a captive Derelict 2913 | -8/Garrison | Discovered new exit (range 10) 2939 | -8/Garrison | P-60 Hacker assimilated allied 70-DUC(b) 3031 | -8/Garrison | Core integrity fell below 20% 3419 | -8/Garrison | Build established: Scavenger-Mutant 3500 | -8/Garrison | Entered Materials 3883 | -8/Materials | Destroyed by Y-45 Defender with Beam Rifle Last Messages --------------- 03795_ Acquired Imp. Heat Sink. 03818_ K-01 Serf collects debris. 03822_ System corrupted: Matter fused (-9). 03844_ C-30 ARC bursts open, deploying its payload. 03844_ S-10 Pest unfolds itself. 03846_ Y-45 Defender destroyed. 03848_ Lgt. Armor Plating destroyed. 03851_ System corrupted: Matter fused (-5). 03851_ S-10 Pest destroyed. 03858_ K-01 Serf collects debris. 03863_ W-25 Informer distress signal alerts nearby ally. 03865_ W-25 Informer destroyed. 03866_ K-01 Serf collects debris. 03868_ U-05 Engineer builds a Door. 03869_ K-01 Serf collects debris. 03871_ S-10 Pest destroyed. 03876_ System corrupted: Component data lost. 03877_ U-05 Engineer builds a Door. 03878_ W-25 Informer destroyed. 03881_ U-05 Engineer destroyed. Map ----- +----------------------------------------------------+ | ?????????????????????????????????????????????????? | | ?????????????????????????????????????????????????? | | ????????????????????????????????????????????###### | | ????????????????????????????????????????????# | | ????????????????????????????????????????????# | | ???????????????????????????????? ??????????# | | ???????????????????????????????? ??????????# | | ???????????????????????????????? ??????????# | | ???????????????????????????????? ??????????# | | ???????????????????????????????? ??????????# | | ???????????????????????????????? ??????????# | | ???????????????????????????????? ?????????####### | | ???????????????????????????????? #????????# !!??? | | ???????????????????????????????? #????????# !!??? | | ????????????????????????????????# #????????# !! ?# | | ????????????????????????????????# #?????#### ## | | ????????????????????????????????# ####### ## + | | ????????????????????????????????# ## # [ # | | ????????????????????????????????# ## # #/ | | ?????????#??????????????????????# ## # ?#! | | ????????? ! ################### ##%* ! # ?# | | ????????# ![ # %=[######! | | ???????? ! %! *%=%" + *!!%+= =* = | | ????????# *[u[=% #[* *=####### | | ????????????? ##########Y######+#### // =*!#?????? | | ???????????????????????#%@%#???????# /= *#?????? | | ???????????????????????#%!=#???????# / #?????? | | ???????????????????????#[%!#???????# #?????? | | ???????????????????????#![ #???????#########?????? | | ???????????????????????# #?????????????????????? | | ???????????????????????#! #?????????????????????? | | ???????????????????????#=% #?????????????????????? | | ???????????????????????##+##?????????????????????? | | ????????????????????????#!#??????????????????????? | | ????????????????????????? #??????????????????????? | | ????????????????????????? #??????????????????????? | | ????????????????????????? #??????????????????????? | | ????????????????????????? ???????????????????????? | | ????????????????????????? ???????????????????????? | | ?????????????????????????"???????????????????????? | | ?????????????????????????????????????????????????? | | ?????????????????????????????????????????????????? | | ?????????????????????????????????????????????????? | | ?????????????????????????????????????????????????? | | ?????????????????????????????????????????????????? | | ?????????????????????????????????????????????????? | | ?????????????????????????????????????????????????? | | ?????????????????????????????????????????????????? | | ?????????????????????????????????????????????????? | | ?????????????????????????????????????????????????? | +----------------------------------------------------+ Best States ------------- Heat Dissipation 59 Energy Generation 14 Energy Capacity 265 Matter Stores 300 Matter Capacity 300 Sight Range 20 Terrain Scan Density 10 Additional Mass Support 9 Armor Coverage 675 Resistance: KI 20 Resistance: TH 20 Resistance: EX 20 Resistance: EM 20 Resistance: I 20 Resistance: S 20 Resistance: P 20 Evasion (%) 63 Targeting Accuracy 8 Recoil Reduction 2 Offensive Hacking 10 Item Schematics ----------------- Aluminum Leg | -9/Materials | Hacked Hcp. Storage Unit | -9/Materials | Hacked Structural Scanner | -9/Materials | Hacked Imp. Sensor Array | -8/Materials | Scanalyzed Robot Schematics ------------------ None Fabricated ------------ Nothing Alien Tech Used ----------------- None Achievements -------------- None Challenges ------------ None Game ------ Seed MomentumNeutrinoNanosword Manual? 0 Play Time 00:38:41 Cumulative 196.9 hours Start 2022.07.05 @ 00:17:47 End 2022.07.05 @ 00:53:59 Sessions 1 Manual Loads 0 Difficulty Adventurer Special Mode None Game No. 81 Rogue 63 Adventurer 15 Explorer 3 Win Type - Total 9 Types 4/0/1/2/0/0/1/0/1 Lore% 58 Gallery% 76 Achievement% 74 Wizard Run 0 Options --------- ASCII 0 Keyboard 0 Movement Numpad Keybinds 0 Fullscreen 1 Font 24/Smallcaps Map View 76x50 Tactical HUD 1 Map Filters NONE Filters LOW_CONTRAST(13,24,33) Steam 1 RUN: a6b52c6c-089e-4556-9d30-791a7a7b9763